fUSD/lending_fUSD_20251011
["ID","MTS","AMOUNT","RATE_DAILY","PERIOD"]
[390898330,1760203357415,-977.91,0.0003863,30]
[390898331,1760203357448,-522.86635176,0.0003863,30]
[390898332,1760203357484,-1903.39,0.0003863,30]
[390898333,1760203357520,-878.76,0.0003863,30]
[390898334,1760203357555,-500.0,0.0003863,30]
[390898335,1760203357590,-569.99,0.0003863,30]
[390898336,1760203357624,-4569.87,0.0003863,30]
[390898337,1760203357659,-656.55,0.0003863,30]
[390898338,1760203357692,-500.0,0.0003863,30]
[390898339,1760203357726,-500.0,0.0003863,30]
[390898340,1760203357762,-4692.44,0.0003863,30]
[390898341,1760203357796,-500.0,0.0003863,30]
[390898342,1760203357829,-4668.41,0.0003863,30]
[390898343,1760203357862,-823.87,0.0003863,30]
[390898344,1760203357896,-3426.51,0.0003863,30]
[390898345,1760203357931,-500.0,0.0003863,30]
[390898346,1760203357966,-678.1,0.0003863,30]
[390898347,1760203358001,-500.0,0.0003863,30]
[390898348,1760203358037,-958.53,0.0003863,30]
[390898349,1760203358073,-500.0,0.0003863,30]
[390898350,1760203358108,-1232.74,0.0003863,30]
[390898351,1760203358145,-3660.54,0.0003863,30]
[390898352,1760203358183,-500.0,0.0003863,30]
[390898353,1760203358222,-400.79923722,0.0003863,30]
[390898354,1760203358260,-500.0,0.0003863,30]
[390898355,1760203358302,-500.0,0.0003863,30]
[390898356,1760203358340,-2446.06,0.0003863,30]
[390898357,1760203358380,-2184.71,0.0003863,30]
[390898358,1760203358415,-500.0,0.0003863,30]
[390898359,1760203358450,-500.0,0.0003863,30]
[390898360,1760203358484,-500.0,0.0003863,30]
[390898361,1760203358518,-500.0,0.0003863,30]
[390898362,1760203358553,-6716.98,0.0003863,30]
[390898363,1760203358587,-501.04606966,0.0003863,30]
[390898364,1760203358621,-2577.58,0.0003863,30]
[390898365,1760203358657,-500.0,0.0003863,30]
[390898366,1760203358692,-3269.71,0.0003863,30]
[390898367,1760203358731,-500.0,0.0003863,30]
[390898368,1760203358769,-500.0,0.0003863,30]
[390898369,1760203358807,-500.0,0.0003863,30]
[390898370,1760203358843,-504.52566944,0.0003863,30]
[390898371,1760203358879,-300.48891325,0.0003863,30]
[390898372,1760203358914,-3527.2,0.0003863,30]
[390898373,1760203358951,-500.0,0.0003863,30]
[390898374,1760203358989,-500.0,0.0003863,30]
[390898375,1760203359029,-1126.69,0.0003863,30]
[390898376,1760203359066,-500.0,0.0003863,30]
[390898377,1760203359102,-500.0,0.0003863,30]
[390898378,1760203359139,-2323.07,0.0003863,30]
[390898379,1760203359176,-500.0,0.0003863,30]
[390898380,1760203359212,-1436.38,0.0003863,30]
[390898381,1760203359249,-753.0,0.0003863,30]
[390898382,1760203359284,-500.0,0.0003863,30]
[390898383,1760203359319,-500.0,0.0003863,30]
[390898384,1760203359356,-2747.77,0.0003863,30]
[390898385,1760203359390,-10524.53,0.0003863,30]
[390898386,1760203359422,-500.0,0.0003863,30]
[390898387,1760203359456,-1362.54,0.0003863,30]
[390898388,1760203359487,-5659.62,0.0003863,30]
[390898389,1760203359518,-500.0,0.0003863,30]
[390898390,1760203359549,-1100.96,0.0003863,30]
[390898391,1760203359581,-500.0,0.0003863,30]
[390898392,1760203359614,-500.0,0.0003863,30]
[390898393,1760203359648,-500.0,0.0003863,30]
[390898394,1760203359682,-500.0,0.0003863,30]
[390898395,1760203359718,-500.0,0.0003863,30]
[390898396,1760203359756,-7497.56,0.0003863,30]
[390898397,1760203359792,-500.0,0.0003863,30]
[390898398,1760203359827,-1122.79,0.0003863,30]
[390898399,1760203359861,-3670.54,0.0003863,30]
[390898400,1760203359896,-382.16614181,0.0003863,30]
[390898401,1760203359930,-3889.34,0.0003863,30]
[390898402,1760203359964,-500.0,0.0003863,30]
[390898403,1760203359997,-500.0,0.0003863,30]
[390898404,1760203360031,-500.0,0.0003863,30]
[390898405,1760203360065,-775.26,0.0003863,30]
[390898406,1760203360099,-500.0,0.0003863,30]
[390898407,1760203360134,-2083.66,0.0003863,30]
[390898408,1760203360168,-500.0,0.0003863,30]
[390898409,1760203360203,-500.0,0.0003863,30]
[390898410,1760203360408,-500.0,0.0003863,30]
[390898411,1760203360445,-500.0,0.0003863,30]
[390898412,1760203360479,-500.0,0.0003863,30]
[390898413,1760203360510,-970.25,0.0003863,30]
[390898414,1760203360543,-8047.59,0.0003863,30]
[390898415,1760203360576,-1288.69,0.0003863,30]
[390898416,1760203360612,-3746.63,0.0003863,30]
[390898417,1760203360648,-500.0,0.0003863,30]
[390898418,1760203360682,-4098.5,0.0003863,30]
[390898419,1760203360718,-500.0,0.0003863,30]
[390898420,1760203360755,-2440.01,0.0003863,30]
[390898421,1760203360791,-506.99305258,0.0003863,30]
[390898422,1760203360826,-3244.32,0.0003863,30]
[390898423,1760203360858,-500.90012262,0.0003863,30]
[390898424,1760203360890,-500.0,0.0003863,30]
[390898425,1760203360923,-500.0,0.0003863,30]
[390898426,1760203360956,-1233.75,0.0003863,30]
[390898427,1760203360990,-500.0,0.0003863,30]
[390898428,1760203361026,-3905.79,0.0003863,30]
[390898429,1760203361063,-756.79,0.0003863,30]
[390898430,1760203361102,-500.0,0.0003863,30]
[390898431,1760203361141,-1713.15,0.0003863,30]
[390898432,1760203361176,-876.34,0.0003863,30]
[390898433,1760203361211,-2414.75,0.0003863,30]
[390898434,1760203361246,-632.72280376,0.0003863,30]
[390898450,1760203461567,1386.96,0.00027397,120]
[390898461,1760203535156,408.41,7.007e-05,2]
[390898462,1760203535356,408.41,7.376e-05,2]
[390898463,1760203535563,408.41,7.745e-05,2]
[390898464,1760203535772,408.41,8.114e-05,2]
[390898465,1760203535972,408.41,8.483e-05,2]
[390898466,1760203536180,229.67614372,8.852e-05,2]
[390898467,1760203536204,178.73385628,8.852e-05,2]
[390898468,1760203536393,408.41,9.22e-05,2]
[390898469,1760203536602,408.41,9.589e-05,2]
[390898470,1760203536806,408.41,9.958e-05,2]
[390898471,1760203537434,408.41,0.00010327,2]
[390898472,1760203537506,408.41,0.00010696,2]
[390898473,1760203537572,50.94228744,0.00011065,2]
[390898474,1760203537596,357.46771256,0.00011065,2]
[390898475,1760203537674,408.41,0.00011433,2]
[390898476,1760203537823,408.41,0.00011802,2]
[390898477,1760203537993,408.41,0.00012171,2]
[390898478,1760203538219,408.41,0.0001254,2]
[390898485,1760203548114,-408.41,0.00012909,2]
[390898486,1760203548146,-259.0137205,0.00013277,2]
[390898489,1760203579096,-149.3962795,0.00013277,2]
[390898490,1760203579119,-152.6037205,0.00013462,2]
[390898491,1760203581007,-386.8536965,0.00013462,2]
[390898549,1760203758917,-23.542583,0.00013462,2]
[390898550,1760203758941,-278.46193809,0.00013563,2]
[390898551,1760203762956,-250.0,0.00013563,2]
[390898552,1760203766502,-302.0,0.00013563,2]
[390898553,1760203768451,-302.0,0.00013563,2]
[390898554,1760203770124,-302.0,0.00013563,2]
[390898555,1760203771497,-289.01799061,0.00013563,2]
[390898562,1760203782677,238.02,0.00010851,2]
[390898563,1760203785981,-398.98200939,0.00013563,2]
[390898568,1760203804223,-302.0,0.00013495,2]
[390898569,1760203806252,-1.721787,0.00013495,2]
[390898570,1760203806275,-215.4245165,0.00013563,2]
[390898581,1760203832080,-326.50057698,0.00013563,2]
[390898583,1760203832133,-417.654328,0.00013563,2]
[390898584,1760203832146,-399.18864043,0.00013563,2]
[390898585,1760203832158,-67.57280592,0.00013646,2]
[390898586,1760203832172,-340.83719408,0.00013646,2]
[390898587,1760203832184,-300.0,0.00013733,2]
[390898588,1760203832196,-300.0,0.00013733,2]
[390898589,1760203832210,-309.68411022,0.00013733,2]
[390898590,1760203832222,-195.0,0.0001378,2]
[390898591,1760203832234,-167.4791853,0.0001392,2]
[390898592,1760203832245,-408.41,0.00014015,2]
[390898593,1760203832257,-2507.14,0.0001402,2]
[390898594,1760203832269,-300.0,0.00014116,2]
[390898595,1760203832280,-300.0,0.00014117,2]
[390898596,1760203832291,-300.0,0.00014117,2]
[390898597,1760203832303,-1200.0,0.00014117,2]
[390898598,1760203832315,-2983.01,0.00014118,2]
[390898599,1760203832327,-250.0,0.00014148,7]
[390898600,1760203832338,-1200.0,0.00014151,2]
[390898601,1760203832350,-1600.0,0.00014155,2]
[390898602,1760203832361,-537.24,0.00014202,2]
[390898603,1760203832372,-221.76232655,0.0001421,7]
[390898604,1760203832384,-2000.0,0.00014255,2]
[390898605,1760203832395,-189.0,0.00014343,2]
[390898606,1760203832406,-259.0,0.00014475,2]
[390898608,1760203832419,-150.0,0.00014502,2]
[390898610,1760203832432,-224.99,0.00014503,2]
[390898613,1760203832443,-500.0,0.00014503,2]
[390898615,1760203832456,-500.0,0.00014503,2]
[390898617,1760203832467,-232.66693065,0.00014503,2]
[390898619,1760203832479,-500.0,0.00014503,2]
[390898621,1760203832490,-500.0,0.00014503,2]
[390898624,1760203832503,-500.0,0.00014503,2]
[390898626,1760203832514,-500.0,0.00014503,2]
[390898628,1760203832525,-500.0,0.00014503,2]
[390898630,1760203832536,-500.0,0.00014503,2]
[390898632,1760203832547,-500.0,0.00014503,2]
[390898635,1760203832558,-500.0,0.00014503,2]
[390898637,1760203832569,-500.0,0.00014503,2]
[390898639,1760203832581,-219.53222894,0.00014503,2]
[390898641,1760203832592,-500.0,0.00014503,2]
[390898644,1760203832604,-500.0,0.00014503,2]
[390898646,1760203832617,-500.0,0.00014503,2]
[390898648,1760203832630,-500.0,0.00014503,2]
[390898650,1760203832643,-500.0,0.00014503,2]
[390898653,1760203832657,-500.0,0.00014503,2]
[390898655,1760203832670,-100.12555406,0.00014503,2]
[390898657,1760203832686,-399.87444594,0.00014503,2]
[390898660,1760203832700,-500.0,0.00014503,2]
[390898662,1760203832717,-500.0,0.00014503,2]
[390898664,1760203832729,-500.0,0.00014503,2]
[390898666,1760203832741,-500.0,0.00014503,2]
[390898668,1760203832753,-500.0,0.00014503,2]
[390898671,1760203832766,-500.0,0.00014503,2]
[390898673,1760203832777,-500.0,0.00014503,2]
[390898675,1760203832790,-500.0,0.00014503,2]
[390898677,1760203832801,-500.0,0.00014503,2]
[390898680,1760203832812,-98.00337535,0.00014503,2]
[390898682,1760203832826,-401.99662465,0.00014503,2]
[390898684,1760203832839,-405.87322431,0.00014503,2]
[390898687,1760203832854,-94.12677569,0.00014503,2]
[390898689,1760203832865,-247.57392058,0.00014503,2]
[390898692,1760203832882,-252.42607942,0.00014503,2]
[390898694,1760203832894,-133.52945538,0.00014503,2]
[390898698,1760203832928,-366.47054462,0.00014503,2]
[390898700,1760203832942,-500.0,0.00014503,2]
[390898703,1760203832953,-252.49250009,0.00014503,2]
[390898705,1760203832972,-247.50749991,0.00014503,2]
[390898707,1760203832984,-488.66112206,0.00014503,2]
[390898709,1760203832997,-11.33887794,0.00014503,2]
[390898712,1760203833009,-500.0,0.00014503,2]
[390898714,1760203833021,-427.24739175,0.00014503,2]
[390898718,1760203833054,-72.75260825,0.00014503,2]
[390898720,1760203833069,-500.0,0.00014503,2]
[390898722,1760203833082,-250.0,0.00014503,2]
[390898724,1760203833094,-217.1463035,0.00014503,2]
[390898727,1760203833108,-9999.99,0.00014504,2]
[390898729,1760203833120,-150.99,0.00014504,2]
[390898731,1760203833133,-999.99,0.00014504,2]
[390898733,1760203833144,-299.99,0.00014504,2]
[390898735,1760203833155,-1582.58,0.00014504,2]
[390898737,1760203833166,-6578.17,0.00014504,2]
[390898739,1760203833178,-7293.05595097,0.00014504,2]
[390898742,1760203833193,-720.82215887,0.00014504,2]
[390898746,1760203833227,-1986.11189016,0.00014504,2]
[390898748,1760203833239,-722.96,0.00014504,2]
[390898750,1760203833250,-3348.06,0.00014504,2]
[390898752,1760203833260,-1445.32,0.00014504,2]
[390898754,1760203833272,-150.99,0.00014504,2]
[390898756,1760203833282,-863.18,0.00014504,2]
[390898759,1760203833293,-49025.58,0.00014504,2]
[390898761,1760203833304,-195.0,0.00014513,2]
[390898763,1760203833315,-335.0,0.00014522,2]
[390898765,1760203833326,-717.05399397,0.00014523,2]
[390898767,1760203833337,-1790.06,0.00014555,2]
[390898769,1760203833347,-175.87,0.00014578,2]
[390898772,1760203833358,-1128.60905069,0.00014605,2]
[390898774,1760203833368,-195.0,0.00014605,2]
[390898776,1760203833378,-2000.0,0.00014605,2]
[390898778,1760203833389,-300.0,0.00014605,2]
[390898780,1760203833400,-250.0,0.00014605,2]
[390898782,1760203833411,-200.0,0.00014611,2]
[390898784,1760203833423,-1502.86,0.00014624,2]
[390898786,1760203833435,-1502.86,0.00014624,2]
[390898789,1760203833446,-694.68,0.00014624,2]
[390898791,1760203833458,-7175.326403,0.00014699,2]
[390898792,1760203833469,-316.3059,0.00014724,2]
[390898793,1760203833480,-2620.95452581,0.00014799,2]
[390898794,1760203833490,-195.0,0.00014808,2]
[390898795,1760203833503,-386.8536965,0.00014808,2]
[390898796,1760203833514,-1856.67945163,0.00014808,2]
[390898797,1760203833525,-2606.15349633,0.00014808,2]
[390898798,1760203833536,-2000.0,0.00014808,2]
[390898799,1760203833547,-160.73,0.00014824,2]
[390898800,1760203833557,-250.0,0.00014844,2]
[390898801,1760203833568,-1896.0,0.00014844,2]
[390898802,1760203833579,-2000.0,0.00014844,2]
[390898803,1760203833589,-167.4791853,0.00014899,2]
[390898805,1760203833600,-508.16962648,0.000149,2]
[390898807,1760203833610,-508.16962649,0.000149,2]
[390898809,1760203833621,-206.88,0.000149,3]
[390898811,1760203833631,-336.30962426,0.000149,2]
[390898814,1760203833642,-445.34836072,0.000149,2]
[390898816,1760203833652,-151.52788463,0.000149,2]
[390898818,1760203833663,-3077.85862413,0.000149,2]
[390898820,1760203833674,-431.22257422,0.000149,2]
[390898822,1760203833684,-166.50262038,0.000149,2]
[390898824,1760203833695,-500.0,0.00014973,2]
[390898826,1760203833707,-500.0,0.00014973,2]
[390898829,1760203833718,-343.17814072,0.00014973,2]
[390898831,1760203833729,-500.0,0.00014973,2]
[390898833,1760203833739,-500.0,0.00014973,2]
[390898835,1760203833750,-626.0631095,0.00014999,2]
[390898837,1760203833760,-1011.4350618,0.00014999,2]
[390898839,1760203833770,-12560.102348,0.00014999,2]
[390898841,1760203833780,-192.57685326,0.00014999,2]
[390898844,1760203833790,-78171.90546812,0.00015,2]
[390899024,1760203835474,-27635.16462259,0.00015,2]
[390899026,1760203835487,-72918.12327758,0.00015,2]
[390899029,1760203835499,-1524.09389807,0.00015,2]
[390899031,1760203835511,-10616.74971772,0.00015,2]
[390899033,1760203835523,-5631.54892812,0.00015,2]
[390899035,1760203835535,-2345.18931984,0.00015,2]
[390899037,1760203835546,-645.71960016,0.00015,2]
[390899040,1760203835557,-428.0,0.00015,2]
[390899043,1760203835576,-4581.42850488,0.00015,2]
[390899045,1760203835589,-1599.22750367,0.00015,2]
[390899047,1760203835601,-1053.03409589,0.00015,2]
[390899097,1760203838084,-483.88,0.00015,2]
[390899098,1760203838097,-179603.50559996,0.00015,2]
[390899099,1760203838194,-8193.9656,0.00015,2]
[390899100,1760203838205,-3618.8152,0.00015,2]
[390899101,1760203838304,-1271.37012887,0.00015,2]
[390899106,1760203840067,-500.0,0.00014699,2]
[390899107,1760203840122,-268.30803458,0.00014699,2]
[390899108,1760203840134,-946.31071423,0.00014699,2]
[390899115,1760203840464,-1.6e-07,0.00014699,2]
[390899118,1760203840484,-3666.87605328,0.00014699,2]
[390899120,1760203840494,-3003598.49420134,0.00015,2]
[390899122,1760203840504,-647.20823931,0.00015,2]
[390899124,1760203840514,-500.0,0.00015,2]
[390899126,1760203840523,-500.0,0.00015,2]
[390899128,1760203840532,-500.0,0.00015,2]
[390899131,1760203840542,-157.92968455,0.00015,2]
[390899133,1760203840552,-151.0,0.00015,2]
[390899135,1760203840562,-500.0,0.00015,2]
[390899137,1760203840571,-4595.48045,0.00015,2]
[390899139,1760203840580,-162.255638,0.00015,2]
[390899141,1760203840589,-4595.48045,0.00015,7]
[390899143,1760203840598,-162.255638,0.00015,7]
[390899145,1760203840607,-2435.733825,0.00015,7]
[390899147,1760203840617,-2435.733825,0.00015,2]
[390899149,1760203840626,-1243.862506,0.00015,7]
[390899151,1760203840635,-1243.862506,0.00015,2]
[390899153,1760203840645,-500.0,0.00015,2]
[390899155,1760203840654,-150.0,0.00015,2]
[390899157,1760203840663,-1014801.90757337,0.00015,2]
[390899159,1760203840673,-150.0,0.00015,2]
[390899161,1760203840682,-150.0,0.00015,2]
[390899163,1760203840691,-150.0,0.00015,2]
[390899165,1760203840700,-666.0,0.00015016,3]
[390899167,1760203840710,-28631.47344426,0.00015045,2]
[390899169,1760203840722,-150.0,0.00015055,2]
[390899171,1760203840731,-150.0,0.0001511,2]
[390899173,1760203840741,-2620.95452575,0.00015144,2]
[390899175,1760203840750,-150.0,0.00015164,2]
[390899177,1760203840759,-294.0,0.00015219,2]
[390899179,1760203840769,-3077.85862404,0.00015239,2]
[390899181,1760203840778,-500.0,0.00015274,2]
[390899183,1760203840787,-500.0,0.00015274,2]
[390899185,1760203840797,-195.0,0.00015338,2]
[390899187,1760203840807,-300.0,0.00015358,2]
[390899189,1760203840816,-150.0,0.00015358,2]
[390899191,1760203840825,-639.28455088,0.00015366,2]
[390899193,1760203840834,-2257.21810139,0.00015374,2]
[390899195,1760203840844,-420.0,0.00015464,2]
[390899197,1760203840855,-420.0,0.00015464,2]
[390899199,1760203840864,-2620.95452575,0.00015488,2]
[390899201,1760203840873,-430.0,0.00015501,2]
[390899203,1760203840883,-1000.0,0.00015521,2]
[390899205,1760203840892,-151.52788463,0.00015525,2]
[390899207,1760203840901,-1680.0,0.00015529,2]
[390899209,1760203840911,-500.0,0.00015548,2]
[390899211,1760203840921,-500.0,0.00015548,2]
[390899214,1760203840930,-3077.85862404,0.00015577,2]
[390899216,1760203840942,-255.0,0.00015619,2]
[390899217,1760203840952,-4595.48045,0.00015742,7]
[390899219,1760203840961,-162.255638,0.00015742,7]
[390899222,1760203840971,-2435.733825,0.00015742,7]
[390899224,1760203840981,-1243.862506,0.00015742,7]
[390899226,1760203840990,-740.0,0.00015817,2]
[390899228,1760203840999,-1266.0,0.00015817,2]
[390899230,1760203841009,-3405.0,0.00015817,2]
[390899231,1760203841018,-4120.0,0.00015817,2]
[390899234,1760203841028,-577.39,0.00015822,2]
[390899236,1760203841037,-500.0,0.00015822,2]
[390899238,1760203841047,-2620.95452575,0.00015833,2]
[390899240,1760203841056,-806.0,0.00015872,2]
[390899242,1760203841065,-3077.85862404,0.00015916,2]
[390899244,1760203841075,-1600.0,0.00015924,2]
[390899246,1760203841084,-445.3483607,0.00015928,2]
[390899248,1760203841093,-150.0,0.00015961,2]
[390899250,1760203841102,-1309.0,0.00015961,2]
[390899252,1760203841112,-604.0,0.00015961,2]
[390899254,1760203841121,-571.0,0.00015961,2]
[390899256,1760203841130,-1587.0,0.00015961,2]
[390899258,1760203841140,-816.0,0.00015961,2]
[390899260,1760203841149,-901.0,0.00015961,2]
[390899262,1760203841159,-1696.0,0.00015961,2]
[390899264,1760203841168,-2565.058,0.00015961,2]
[390899266,1760203841178,-1182.0,0.00015961,2]
[390899268,1760203841187,-823.8,0.00015961,2]
[390899270,1760203841196,-166.50262038,0.00016004,2]
[390899272,1760203841206,-1500.0,0.00016068,2]
[390899274,1760203841216,-435.70186081,0.00016074,2]
[390899276,1760203841226,-500.0,0.00016096,2]
[390899278,1760203841236,-151.52788463,0.0001615,2]
[390899280,1760203841246,-5000.00033124,0.000162,5]
[390899282,1760203841255,-161.66668499,0.00016218,2]
[390899284,1760203841265,-823.8,0.00016235,2]
[390899286,1760203841275,-475.23572958,0.00016237,2]
[390899288,1760203841285,-3385.82715209,0.00016243,2]
[390899290,1760203841294,-3077.85862404,0.00016254,2]
[390899292,1760203841303,-160.73,0.00016306,2]
[390899295,1760203841314,-500.0,0.0001637,2]
[390899297,1760203841323,-167.88,0.00016388,2]
[390899299,1760203841332,-10000.0,0.00016438,5]
[390899301,1760203841342,-4386.55543933,0.00016438,5]
[390899303,1760203841351,-1000.0,0.00016438,2]
[390899305,1760203841360,-250.0,0.00016438,2]
[390899307,1760203841369,-4595.48045,0.00016484,7]
[390899308,1760203841377,-157.59221,0.00016484,7]
[390899310,1760203841387,-162.255638,0.00016484,7]
[390899312,1760203841396,-151.044095,0.00016484,7]
[390899314,1760203841405,-2435.733825,0.00016484,7]
[390899316,1760203841414,-1243.862506,0.00016484,7]
[390899317,1760203841425,-155.0,0.00016499,2]
[390899318,1760203841436,-823.8,0.00016508,2]
[390899319,1760203841445,-3077.85862404,0.00016593,2]
[390899321,1760203841454,-2435.733825,0.00016605,2]
[390899323,1760203841466,-1243.862506,0.00016605,2]
[390899326,1760203841476,-2000.0,0.00016616,2]
[390899328,1760203841485,-4595.48045,0.00016645,2]
[390899330,1760203841494,-162.255638,0.00016645,2]
[390899332,1760203841505,-157.59221,0.00016645,2]
[390899334,1760203841519,-435.70186081,0.00016661,2]
[390899336,1760203841529,-151.52788463,0.00016775,2]
[390899338,1760203841538,-823.8,0.00016782,2]
[390899340,1760203841548,-433.0,0.00016823,2]
[390899342,1760203841557,-300.0,0.00016827,2]
[390899345,1760203841568,-2802.5376484,0.000169,2]
[390899347,1760203841578,-3077.85862404,0.00016931,2]
[390899349,1760203841587,-587.0,0.0001694,2]
[390899351,1760203841597,-445.3483607,0.00016955,2]
[390899353,1760203841606,-162560.85485232,0.00017,2]
[390899358,1760203841644,-2756.72861186,0.00017,2]
[390899361,1760203841664,-24023.99999999,0.00017,2]
[390899363,1760203841676,-2295.65891027,0.00017,2]
[390899365,1760203841686,-475.23572958,0.00017,7]
[390899367,1760203841695,-150.0,0.00017,7]
[390899369,1760203841705,-250.0,0.00017,2]
[390899371,1760203841718,-168.0,0.00017005,2]
[390899373,1760203841728,-823.8,0.00017056,2]
[390899376,1760203841738,-2351.0,0.00017082,2]
[390899378,1760203841748,-166.50262038,0.00017108,2]
[390899380,1760203841757,-4514.43620279,0.00017113,2]
[390899382,1760203841767,-2500.0,0.00017164,2]
[390899384,1760203841776,-4595.48045,0.00017227,7]
[390899386,1760203841786,-157.59221,0.00017227,7]
[390899388,1760203841795,-162.255638,0.00017227,7]
[390899390,1760203841805,-151.044095,0.00017227,7]
[390899392,1760203841814,-2435.733825,0.00017227,7]
[390899394,1760203841824,-1243.862506,0.00017227,7]
[390899396,1760203841834,-435.70186081,0.00017249,2]
[390899398,1760203841843,-3077.85862404,0.0001727,2]
[390899400,1760203841852,-625.3306743,0.00017324,2]
[390899402,1760203841861,-823.8,0.0001733,2]
[390899404,1760203841871,-151.52788463,0.000174,2]
[390899406,1760203841881,-336.30962425,0.000174,2]
[390899408,1760203841891,-151.0,0.00017534,2]
[390899409,1760203841900,-823.8,0.00017604,2]
[390899410,1760203841910,-3077.85862404,0.00017608,2]
[390899411,1760203841919,-1600.0,0.00017693,2]
[390899412,1760203841928,-32133.29157415,0.00017697,2]
[390899413,1760203841937,-9779.69743575,0.00017697,2]
[390899414,1760203841947,-75153.95564843,0.00017698,2]
[390899415,1760203841957,-403.0,0.000177,5]
[390899416,1760203841968,-43126.17532672,0.00017702,2]
[390899417,1760203841977,-677.10446506,0.00017702,2]
[390899418,1760203841987,-171.16571012,0.00017706,2]
[390899419,1760203841997,-75153.95564843,0.00017708,2]
[390899420,1760203842006,-22902.382049,0.0001771,2]
[390899421,1760203842016,-32133.29157415,0.00017711,2]
[390899422,1760203842026,-3000.0,0.00017712,2]
[390899423,1760203842036,-136129.87301376,0.00017719,2]
[390899424,1760203842049,-359.81449838,0.00017719,2]
[390899432,1760203843312,-1201.0,0.00015817,2]
[390899433,1760203843369,-258.148,0.00015817,2]
[390899436,1760203846321,-588.852,0.00015817,2]
[390899437,1760203846331,-2620.95452575,0.00016177,2]
[390899438,1760203846340,-161.66668499,0.00016221,2]
[390899439,1760203846350,-151.0,0.00016616,2]
[390899440,1760203846359,-7211.18875116,0.00017719,2]
[390899441,1760203846371,-14579.9334605,0.00017719,2]
[390899442,1760203846474,-6123.07408779,0.00017719,2]
[390899443,1760203846500,-23014.58394337,0.00017719,2]
[390899932,1760205032364,-168.50718993,0.00014999,2]
[390899933,1760205032375,-302.0,0.00014999,2]
[390899934,1760205032385,-807.00055768,0.00014999,2]
[390899935,1760205032395,-276.95468782,0.00015278,2]
[390899936,1760205032405,-266.48019074,0.00016117,2]
[390899937,1760205032415,-206.01260522,0.000162,2]
[390899938,1760205032425,-249.25702942,0.000162,2]
[390899939,1760205032435,-157.56507449,0.00016223,2]
[390899940,1760205032445,-257.91778498,0.00016223,2]
[390899941,1760205032455,-1200.0,0.00016231,2]
[390899942,1760205032465,-1200.0,0.00016231,2]
[390899943,1760205032475,-500.0,0.00016232,2]
[390899944,1760205032485,-500.0,0.00016232,2]
[390899945,1760205032495,-500.0,0.00016232,2]
[390899946,1760205032504,-500.0,0.00016232,2]
[390899947,1760205032514,-500.0,0.00016232,2]
[390899948,1760205032524,-500.0,0.00016232,2]
[390899949,1760205032534,-500.0,0.00016232,2]
[390899950,1760205032545,-500.0,0.00016232,2]
[390899951,1760205032554,-500.0,0.00016232,2]
[390899952,1760205032564,-500.0,0.00016232,2]
[390899953,1760205032573,-500.0,0.00016232,2]
[390899954,1760205032583,-500.0,0.00016232,2]
[390899955,1760205032593,-500.0,0.00016232,2]
[390899956,1760205032603,-500.0,0.00016232,2]
[390899957,1760205032613,-500.0,0.00016232,2]
[390899958,1760205032623,-500.0,0.00016232,2]
[390899959,1760205032633,-500.0,0.00016232,2]
[390899960,1760205032642,-414.80680762,0.00016232,2]
[390899961,1760205032652,-500.0,0.00016232,2]
[390899962,1760205032662,-550.0,0.00016232,2]
[390899963,1760205032674,-300.0,0.00016232,2]
[390899964,1760205032684,-787.411,0.00016233,2]